Cogmind - Beta 16 @@@ ROGUE MODE // 2025.11.28 @ 18:55:30 Player: lepire Result: Destroyed by Y-45 Defender with Beam Rifle Performance ------------- Evolutions (0) 0 Regions Visited (2) 400 Robots Destroyed (14) 70 Value Destroyed (397) 397 Prototype IDs (2) 40 Alien Tech Used (0) 0 Bonus (0) 0 TOTAL SCORE: 907 Bonus ------- None Cogmind --------- Core Integrity 0/250 Matter 300/300 Energy 125/125 System Corruption 0% Temperature Cool (9) Movement Rolling (175) Ox5 Location -10/Subcaves Parts ------- > --- POWER (1) -------- Light Ion Engine > --- PROPULSION (2) --- Light Treads Compact Wheel > --- UTILITY (2) ------ Huge Storage Unit Makeshift Light Armor Plating > --- WEAPON (2) ------- Assault Rifle Battle Rifle > --- INVENTORY (25) --- Ion Engine Light Ion Engine Wheel Subdweller Monowheel Improved Heat Sink Large Matter Pod (150) Subdweller Optics Sensor Array Terrain Scanner Seismic Detector Transport Network Coupler Targeting Computer Targeting Computer Targeting Computer Targeting Computer Assault Rifle Assault Rifle Assault Rifle Subdweller Machine Gun Subdweller Machine Gun Light Cannon Datajack Mining Laser Shrapnel Trap Shrapnel Trap Peak State ------------ > --- POWER ------------ Light Ion Engine > --- PROPULSION ------- Light Treads Compact Wheel > --- UTILITY ---------- Huge Storage Unit Makeshift Light Armor Plating > --- WEAPON ----------- Battle Rifle Mining Laser > --- INVENTORY -------- Ion Engine Light Ion Engine Light Treads Wheel Subdweller Monowheel Improved Heat Sink Large Matter Pod Subdweller Optics Sensor Array Terrain Scanner Seismic Detector Transport Network Coupler Targeting Computer Targeting Computer Targeting Computer Targeting Computer Assault Rifle Assault Rifle Assault Rifle Assault Rifle Subdweller Machine Gun Subdweller Machine Gun Light Cannon Datajack Shrapnel Trap [Rating: 14] Favorites ----------- Power Light Ion Engine Engine Light Ion Engine Propulsion Compact Wheel Treads Light Treads Leg Aluminum Leg Wheel Compact Wheel Utility Huge Storage Unit Device Subdweller Optics Storage Huge Storage Unit Protection Backup Plating I Weapon Assault Rifle Energy Gun Medium Laser Ballistic Gun Assault Rifle Ballistic Cannon Light Cannon Special Weapon Mining Laser Build | -11 -10 -10 ------- Run | Yrd Mat Sub Slots Evolved . | . . . Power . | . . . Propulsion . | . . . Utility . | . . . Weapon . | . . . Parts Attached 19 | 2 13 4 Power 2 | . 2 . Engine 2 | . 2 . Core . | . . . Reactor . | . . . Propulsion 5 | 2 2 1 Treads 3 | 1 1 1 Leg . | . . . Wheel 2 | 1 1 . Hover . | . . . Flight . | . . . Utility 5 | . 3 2 Device 2 | . 1 1 Storage 1 | . 1 . Processor . | . . . Hackware . | . . . Protection 2 | . 1 1 Artifact . | . . . Weapon 7 | . 6 1 Energy Gun 2 | . 2 . Energy Cannon . | . . . Ballistic Gun 3 | . 2 1 Ballistic Cannon 1 | . 1 . Launcher . | . . . Special Weapon 1 | . 1 . Impact Weapon . | . . . Slashing Weapon . | . . . Piercing Weapon . | . . . Special Melee Weapon . | . . . Unidentified Prototypes . | . . . Parts Lost 6 | . 4 2 Power . | . . . Propulsion 2 | . 1 1 Utility 2 | . 1 1 Weapon 2 | . 2 . Highest Loss Streak 2 | . 2 1 To Critical Strikes . | . . . Average Backups 18 | 6 15 22 Power 1 | 1 1 2 Propulsion 2 | 4 2 2 Utility 8 | . 6 11 Weapon 4 | 1 3 6 Tool/Special . | . . . Unused Backups 20 | . 1 19 Power 2 | . . 2 Propulsion 2 | . . 2 Utility 9 | . . 9 Weapon 6 | . 1 5 Tool/Special 1 | . . 1 Average Slot Usage (%) 98 | . 97 99 Engine 14 | . 14 14 Treads 13 | . 13 14 Wheel 14 | . 14 14 Storage 14 | . 14 14 Protection 12 | . 11 13 Energy Gun 4 | . 7 . Ballistic Gun 20 | . 16 26 Ballistic Cannon 1 | . 3 . Special Weapon 1 | . . 1 Peak Build Rating 14 | 6 9 14 Average Rating 9 | 6 8 10 On Entrance 7 | 6 6 9 Avg Prop Armor Cover (%) 10 | . 10 10 Naked Turns . | . . . Heaviest Build 93 | 14 93 91 Greatest Support 16 | 16 16 16 Greatest Overweight (x) 5 | . 5 5 Average Overweight (x) 4 | . 4 5 Largest Inventory Capacity 25 | 8 25 25 Average Capacity 24 | 8 24 25 Most Carried 25 | 6 24 25 Average Carried 18 | 5 15 23 Final Capacity 25 | 8 25 25 Final Carried 25 | 4 24 25 Class Distribution -------------------- 100% | Mutant Dominant Class ---------------- Mutant | -10/Materials Mutant | -10/Subcaves Resources | -11 -10 -10 ----------- Run | Yrd Mat Sub Matter Collected 886 | 220 456 210 Remotely . | . . . Salvage Created 350 | . 214 136 Parts 27 | . 16 11 Haulers Intercepted . | . . . Recyclers Shooed 1 | . 1 . Parts Field Recycled . | . . . Retrieved Matter . | . . . Parts Self-Destructed 6 | . . 6 Prevented . | . . . Parts Restored . | . . . Kills | -11 -10 -10 ------- Run | Yrd Mat Sub Combat Hostiles Destroyed 11 | . 7 4 Guns 9 | . 6 3 Cannons 2 | . 1 1 Classes Destroyed 5 | . 4 1 Operator 1 | . 1 . Watcher 2 | . 2 . Swarmer 3 | . 3 . Grunt 4 | . 4 . Subdweller 4 | . . 4 Best Kill Streak 2 | . 2 1 Combat Bots Only 2 | . 2 1 Max Kills in Single Turn 1 | . 1 1 Gunslinging . | . . . Exploded . | . . . Melee . | . . . Uniques/NPCs Destroyed . | . . . Combat | -11 -10 -10 -------- Run | Yrd Mat Sub Hostile Shots Fired 118 | . 71 47 Missed 28 | . 15 13 Hits 90 | . 56 34 Projectile 90 | . 56 34 Critical Strikes 3 | . 1 2 Damage Taken 1332 | . 633 699 Core 255 | . 100 155 Absorbed by Shields . | . . . Core Remaining (%) 100 | 100 . . Volleys Fired 73 | . 39 34 Largest 2 | . 2 2 Hottest 125 | . 100 125 Shots Fired 129 | . 70 59 Gun 102 | . 57 45 Cannon 9 | . 9 . Launcher . | . . . Special 18 | . 4 14 Kinetic 94 | . 49 45 Thermal 35 | . 21 14 Explosive . | . . . Electromagnetic . | . . . Robot Hit Streak 12 | . 8 12 Robot Miss Streak 4 | . 4 2 Penetration Max . | . . . Secondary Targets . | . . . Shots Hit Robots 80 | . 39 41 Core Hits 24 | . 15 9 Critical Kills . | . . . Critical Parts Destroyed . | . . . Critical Strikes 1 | . . 1 Destroy 1 | . . 1 Melee Attacks . | . . . Impact . | . . . Slashing . | . . . Piercing . | . . . Sneak Attacks . | . . . Combat Hostiles . | . . . Follow-up Attacks . | . . . Damage Inflicted 1277 | . 677 600 Guns 892 | . 388 504 Cannons 105 | . 105 . Explosions 184 | . 184 . Melee . | . . . Ramming . | . . . Kinetic 884 | . 380 504 Thermal 209 | . 113 96 Explosive 184 | . 184 . Electromagnetic . | . . . Impact . | . . . Slashing . | . . . Piercing . | . . . Highest Corruption . | . . . Average Corruption . | . . . Corruption Purged . | . . . Corruption Blocked . | . . . Overload Shots . | . . . Overflow Damage 84 | . 84 . Projectiles . | . . . Explosions 84 | . 84 . Melee . | . . . Knockbacks 2 | . 2 . Impact . | . . . Kinetic 2 | . 2 . Secondary . | . . . Self-Inflicted Damage . | . . . Shots . | . . . Rammed . | . . . Targets Rammed . | . . . Kicked . | . . . Crushed . | . . . Highest Temperature 235 | . 235 . Average Temperature 60 | . 60 . Received Heat Transfer 237 | . 204 33 Siege Activations . | . . . Martial Activations . | . . . Shielding Activations . | . . . Robots Disrupted . | . . . Combat Hostiles . | . . . Robots Corrupted . | . . . Combat Hostiles . | . . . Parts Fried . | . . . Impact Corruptions . | . . . Robots Melted . | . . . Combat Hostiles . | . . . Parts Melted 1 | . 1 . Heat Transferred 533 | . 333 200 Parts Sabotaged . | . . . Parts Stolen . | . . . Parts Stripped . | . . . Power Chain Reactions . | . . . Alert | -11 -10 -10 ------- Run | Yrd Mat Sub Maximum Alert Level . | . . . Low Security (%) 100 | 100 100 . Level 1 . | . . . Level 2 . | . . . Level 3 . | . . . Level 4 . | . . . Level 5 . | . . . High Security . | . . . Max Security . | . . . Peak Influence 54 | . 54 . Initial . | . . . Average 7 | . 7 . Influence Increases 259 | . 259 . Destroy 0b10 Robot/C 140 | . 140 . Destroy 0b10 Robot/NC 15 | . 15 . Destroy Leader 44 | . 44 . Successful Hack 16 | . 16 . Disable Machine 15 | . 15 . Destroy Structure 29 | . 29 . Influence Decreases 259 | . 259 . Time Decay 239 | . 239 . Lost Part 20 | . 20 . Squads Dispatched 4 | . 4 . Investigation 2 | . 2 . Extermination . | . . . Reinforcement 2 | . 2 . Assault . | . . . Garrison . | . . . Intercept . | . . . Searches Triggered . | . . . Construction Impeded . | . . . Haulers Reinforced . | . . . Active Scanning Responses . | . . . Cargo Convoy Interrupts . | . . . Stealth | -11 -10 -10 --------- Run | Yrd Mat Sub Distress Signals 2 | . 2 . Communications Jammed . | . . . Distress Signals . | . . . Times Spotted 26 | . 21 5 Peak Tracking Total 6 | . 6 2 Tactical Retreats 2 | . 2 . Traps | -11 -10 -10 ------- Run | Yrd Mat Sub Traps Triggered 2 | . 2 . Indirectly . | . . . Trap Hack Attempts . | . . . Triggered . | . . . Disarmed . | . . . Reprogrammed . | . . . Reused . | . . . Traps Extracted . | . . . Installed . | . . . Triggered . | . . . Most Traps Carried 2 | . . 2 Objects Rigged 5 | . 5 . Exploded 1 | . 1 . Machines | -11 -10 -10 ---------- Run | Yrd Mat Sub Machines Disabled 1 | . 1 . Max in Single Turn 1 | . 1 . Machines Repaired . | . . . Machines Dismantled . | . . . Machines Sabotaged . | . . . Overloaded Fab Kills . | . . . Hacking | -11 -10 -10 --------- Run | Yrd Mat Sub Machines Accessed 9 | . 9 . Terminals 6 | . 6 . Fabricators . | . . . Repair Stations 1 | . 1 . Recycling Units 2 | . 2 . Scanalyzers . | . . . Garrison Access . | . . . Total Hacks 21 | . 21 . Successful 11 | . 11 . Failed 10 | . 10 . Catastrophic . | . . . Database Lockouts . | . . . Manual 13 | . 13 . Terminals 15 | . 15 . Fabricators . | . . . Repair Stations 1 | . 1 . Recycling Units 5 | . 5 . Scanalyzers . | . . . Garrison Access . | . . . Terminal Hacks 2 | . 2 . Prototype ID Bank 1 | . 1 . Locate Traps 1 | . 1 . Fabricator Hacks . | . . . Repair Station Hacks 1 | . 1 . Refit 1 | . 1 . Recycling Unit Hacks 3 | . 3 . Report Inventory 1 | . 1 . Retrieve Components 2 | . 2 . Scanalyzer . | . . . Garrison Access Hacks . | . . . Unauthorized Hacks 5 | . 5 . Terminals 4 | . 4 . Botnet 3 | . 3 . Detonate 1 | . 1 . Fabricators . | . . . Repair Stations . | . . . Recycling Units 1 | . 1 . Reject 1 | . 1 . Scanalyzers . | . . . Garrison Access . | . . . Data Cores Recovered . | . . . Used . | . . . Hacking Detections 5 | . 5 . Full Trace Events . | . . . Feedback Events . | . . . Feedback Blocked . | . . . Robot Schematics Acquired . | . . . Robots Built . | . . . Authchips . | . . . Time . | . . . Total Robot Build Rating . | . . . Part Schematics Acquired . | . . . Parts Built . | . . . Authchips . | . . . Time . | . . . Total Part Build Rating . | . . . Part Studies Acquired . | . . . Parts Repaired . | . . . Time . | . . . Parts Recycled . | . . . Recycled Matter . | . . . Retrieved Matter . | . . . Retrieved Components 8 | . 8 . Parts Scanalyzed . | . . . Part Schematics Acquired . | . . . Parts Damaged . | . . . Bothacking | -11 -10 -10 ------------ Run | Yrd Mat Sub Used RIF Installer . | . . . Robots Hacked . | . . . Non-combat . | . . . Combat . | . . . Robot Hacks Applied . | . . . Relay Couplers Released . | . . . Fabnet Peak Effective % . | . . . Robots Rewired . | . . . Allies Hacked . | . . . Hacks Repelled . | . . . Allies | -11 -10 -10 -------- Run | Yrd Mat Sub Total Allies . | . . . Largest Group . | . . . Highest-Rated Group . | . . . Highest-Rated Ally . | . . . Total Orders . | . . . Ally Attacks . | . . . Total Damage . | . . . Kills . | . . . Allies Corrupted . | . . . Allies Melted . | . . . Intel | -11 -10 -10 ------- Run | Yrd Mat Sub Active Infowar (turns) 52 | . 16 36 Optics 36 | . . 36 Sensors 16 | . 16 . Robot Analysis Total . | . . . Derelict Logs Recovered . | . . . Drone Launches . | . . . Drone Recoveries . | . . . Exploration | -11 -10 -10 ------------- Run | Yrd Mat Sub Turns Passed 2940 | 7 1724 1209 Spaces Moved 1509 | 3 898 608 Core . | . . . Treads . | . . . Legs . | . . . Wheels 1509 | 3 898 608 Hover . | . . . Flight . | . . . Fastest Speed 100 | 100 100 175 Average Speed 171 | 100 169 175 Slowest Speed 175 | 100 175 175 Overloaded Moves . | . . . Propulsion Burnouts . | . . . Robots Hopped . | . . . Potential Cave-ins . | . . . Cave-ins Triggered . | . . . Exploration Rate (%) 43 | 2 99 28 Regions Visited 2 Branch Regions 1 Pre-discovered Areas . | . . . Known Exits Taken . | . . . Unknown Exits Taken 2 | 1 1 . Scrap Searched 8 | . . 8 Spaces Dug 4 | . 4 . Terrain Destroyed 31 | . 31 . Melee . | . . . Projectile 4 | . 4 . AOE 27 | . 27 . Terrain Rammed . | . . . Walls Destroyed . | . . . Machines Disabled . | . . . Actions | -11 -10 -10 --------- Run | Yrd Mat Sub Total 1684 | 6 1011 667 Wait 45 | . 40 5 Move 1507 | 2 897 608 Hop . | . . . Pick Up 25 | . 18 7 Fast Attach 3 | . 2 1 Attach 3 | . 2 1 Detach . | . . . Swap 21 | 2 13 6 Drop 7 | 2 . 5 Fire 73 | . 39 34 Melee . | . . . Ram . | . . . Kick . | . . . Crush . | . . . Escape Stasis . | . . . Rewire . | . . . Trap . | . . . Miscellaneous . | . . . Route ------- -11/Scrapyard -10/Materials (discovered 6 exits: [*Mat x3] / [*Min x2] / [*Sub]) -10/Subcaves History --------- Turn | Location | Event 6 | -11/Scrapyard | Discovered new exit (range 1) 8 | -11/Scrapyard | Entered Materials 99 | -10/Materials | Discovered new exit (range 16) 313 | -10/Materials | Discovered new exit (range 10) 318 | -10/Materials | Build established: Mutant 580 | -10/Materials | Discovered new exit (range 8) 608 | -10/Materials | Derelicts attacked the area 953 | -10/Materials | Discovered new exit (range 7) 1059 | -10/Materials | Discovered new exit (range 11) 1236 | -10/Materials | Discovered new exit (range 8) 1732 | -10/Materials | Entered Subcaves 2331 | -10/Subcaves | Shifting Twisted Machinery released Sub. Machine Gun 2334 | -10/Subcaves | Shifting Twisted Machinery released Sub. Machine Gun 2645 | -10/Subcaves | Disturbed a concealed Subdweller 2645 | -10/Subcaves | Disturbed a concealed Subdweller 2646 | -10/Subcaves | Core integrity fell below 50% 2694 | -10/Subcaves | Core integrity fell below 20% 2941 | -10/Subcaves | Destroyed by Y-45 Defender with Beam Rifle Last Messages --------------- 02635_ Acquired Sub. Optics. 02636_ Acquired 10 matter. 02640_ Searching scrap... 02640_ Found Shrapnel Trap. 02640_ Found Sub. Machine Gun. 02645_ 33-8YT(R) angrily emerges from the Twisted Machinery. 02645_ 7C-ILY(R) angrily emerges from the Twisted Machinery. 02646_ Acquired 3 matter. 02663_ Lgt. Treads destroyed. 02665_ Acquired 10 matter. 02666_ Acquired 3 matter. 02670_ 7C-ILY(R) destroyed. 02671_ Acquired 3 matter. 02679_ Acquired Shrapnel Trap. 02686_ Acquired 10 matter. 02688_ Acquired 6 matter. 02698_ 33-8YT(R) destroyed. 02699_ Acquired 6 matter. Map ----- +----------------------------------------------------+ | # #?## #??##??##### ##?????????????? | | # #?# ### #??????## #?????????????? | | # ### #???#?### ##????????????? | | #?? ### ### ######???????? | | ## #?## ## ### ##??????? | | #### ### #?# ### ## ##?????? | | ##?## ### ### #?????? | | ???# ## ##????? | | ???## # ### ## #????? | | ????## #### # ###?#### #?? | | ?????## ## ##########?## #?? | | ??????## #?# #??# #? | | ####???#### #?# #??# ## #? | | # #??????# #### #??# ##?? #? | | #?????## ### #??# ## #??# ## | | ####### #??########??? | | ######## #?????????????? | | ## ##????# #?????????????? | | ?## ##???## ##??????????????? | | #### #????### ### ####????????????????# | | ### ##?##### ########???###?????????## | | ## ### #### ##### ##??????### | | ## ## #??????# | | #### ## #???????? | | ##??## ## #?????????? | | ##????## @ #?????????## | | #####?????## ######????# | | #?????????# ## ## Y ##???## | | #####?##### ####### #### ##### | | ### ## ##?????# #??## # | | ## ## #??????### #??## | | ## ##???????## #??# | | ## ##???????# ##??## | | ##??????#####????## ## | | #### #????????????????## ## #### | | ???#### ## ## ##?????????????????## #######??? | | ??????#########?###???????????????????###????????? | | ?????????????????????????????????????????????????? | | ?????????????????????????????????????????????????? | | ?????????????????????????????????????????????????? | | ?????????????????????????????????????????????????? | | ?????????????????????????????????????????????????? | | ?????????????????????????????????????????????????? | | ?????????????????????????????????????????????????? | | ?????????????????????????????????????????????????? | | ?????????????????????????????????????????????????? | | ?????????????????????????????????????????????????? | | ?????????????????????????????????????????????????? | | ?????????????????????????????????????????????????? | | ?????????????????????????????????????????????????? | +----------------------------------------------------+ Best States ------------- Heat Dissipation 25 Energy Generation 10 Energy Capacity 250 Matter Stores 300 Matter Capacity 300 Sight Range 21 Robot Scan Range 14 Terrain Scan Density 10 Armor Coverage 150 Evasion (%) 40 Recoil Reduction 1 Item Schematics ----------------- None Robot Schematics ------------------ None Fabricated ------------ Nothing Repaired ---------- Nothing Studied --------- None Alien Tech Used ----------------- None Achievements -------------- None Challenges ------------ None Game ------ Seed ImpactChargeSuite Manual? 0 Play Time 00:21:54 Cumulative 98.3 hours Start 2025.11.28 @ 18:35:53 End 2025.11.28 @ 18:55:30 Sessions 1 Manual Loads 0 Difficulty Rogue Special Mode None Game No. 112 Rogue 82 Adventurer 30 Explorer 0 Win Type - Total 1 Types 1/0/0/0/0/0/0/0/0/0 Lore% 51 Gallery% 42 Achievement% 32 Wizard Run 0 Options --------- Layout 2 ASCII 0 Keyboard 1 Movement Arrows Keybinds 0 Fullscreen 1 Font 24/Terminus Map View 50x44 Zoom Use 0% Tactical HUD 1 Map Filters NONE Filters NONE Steam 1 RUN: 05b7ef91-ae8b-4b79-a0b2-a4f49e8c7753